bitfinex/quotes_BTCUSD_20250218
["timestamp","ask_amount","ask_price","bid_price","bid_amount"]
[1739903036850,0.00078278,94244.0,94243.0,0.11769975]
[1739903037149,0.00078278,94244.0,94243.0,0.11069975]
[1739903037330,0.00078278,94244.0,94243.0,0.11769975]
[1739903037539,0.00264739,94244.0,94243.0,0.11769975]
[1739903037917,0.00078278,94244.0,94243.0,0.11769975]
[1739903038537,0.00264771,94244.0,94243.0,0.11769975]
[1739903038740,0.00264771,94244.0,94243.0,0.11069975]
[1739903038984,0.00264771,94244.0,94243.0,0.11769975]
[1739903040389,0.00078278,94244.0,94243.0,0.11769975]
[1739903040582,0.00264739,94244.0,94243.0,0.11769975]
[1739903040787,0.00078278,94244.0,94243.0,0.11769975]
[1739903041118,0.00264771,94244.0,94243.0,0.11769975]
[1739903041322,0.16102624,94244.0,94243.0,0.11769975]
[1739903041461,0.00186524,94244.0,94243.0,0.11769975]
[1739903041674,0.159161,94244.0,94243.0,0.11769975]
[1739903042041,0.16094916,94244.0,94243.0,0.11769975]
[1739903042373,0.16094916,94244.0,94243.0,0.0151961]
[1739903042779,0.31094916,94244.0,94243.0,0.0151961]
[1739903043320,0.31094916,94244.0,94243.0,0.0081961]
[1739903043497,0.31094916,94244.0,94243.0,0.0151961]
[1739903044252,0.31094916,94244.0,94243.0,0.0073404]
[1739903044918,0.31094916,94244.0,94243.0,4e-07]
[1739903044919,0.44614635,94244.0,94243.0,4e-07]
[1739903045121,0.46590283,94244.0,94243.0,4e-07]
[1739903045325,0.43594916,94244.0,94243.0,4e-07]
[1739903045958,0.43594916,94244.0,94243.0,0.0060004]
[1739903046160,0.45257897,94244.0,94243.0,4e-07]
[1739903046571,0.45257897,94244.0,94243.0,0.0030004]
[1739903047580,0.48253264,94244.0,94243.0,4e-07]
[1739903048124,0.48253264,94244.0,94220.0,0.0003404]
[1739903048125,0.1592,94221.0,94220.0,0.0003404]
[1739903048617,0.16090299,94221.0,94220.0,0.0003404]
[1739903048945,0.01833421,94221.0,94220.0,0.10284405]
[1739903049325,0.01663122,94221.0,94220.0,0.10284405]
[1739903049525,0.01833415,94221.0,94220.0,0.10284405]
[1739903050116,0.01933415,94221.0,94220.0,0.10784405]
[1739903050951,0.01763122,94221.0,94220.0,0.10784405]
[1739903051172,0.01933415,94221.0,94220.0,0.10784405]
[1739903051375,0.01663122,94221.0,94220.0,0.10284405]
[1739903051802,0.01763122,94221.0,94220.0,0.10584405]
[1739903052000,0.01763122,94221.0,94220.0,0.10284405]
[1739903052631,0.01763122,94221.0,94220.0,0.26204505]
[1739903052981,0.15917,94239.0,94220.0,0.10584405]
[1739903053149,0.159173,94237.0,94236.0,0.08476686]
[1739903053353,0.159173,94237.0,94236.0,0.18627051]
[1739903053573,0.16103619,94237.0,94236.0,0.18627051]
[1739903053821,0.00186319,94237.0,94236.0,0.18627051]
[1739903054327,0.159172,94238.0,94236.0,0.18627051]
[1739903054565,0.00185876,94237.0,94236.0,0.18627051]
[1739903055036,0.212202,94250.0,94236.0,0.18627051]
[1739903055280,0.16103831,94237.0,94236.0,0.18627051]
[1739903055521,0.159173,94237.0,94236.0,0.18527051]
[1739903055729,0.0001702,94315.0,94238.0,0.0452]
[1739903055730,0.0823,94274.0,94238.0,0.0452]
[1739903055930,0.159155,94248.0,94239.0,0.10250365]
[1739903056149,0.159154,94248.0,94246.0,0.08376686]
[1739903056351,0.01662563,94249.0,94247.0,0.10250365]
[1739903056870,0.159154,94248.0,94247.0,0.10250365]
[1739903057264,0.001,94248.0,94247.0,0.10250365]
[1739903058275,0.17577863,94249.0,94247.0,0.10250365]
[1739903058495,0.159154,94248.0,94247.0,0.10250365]
[1739903058703,0.159154,94248.0,94247.0,0.10950365]
[1739903058836,0.159154,94248.0,94247.0,0.10250365]
[1739903059040,0.159172,94238.0,94236.0,0.08310726]
[1739903059232,0.159169,94239.0,94237.0,0.10250365]
[1739903059787,0.159171,94238.0,94237.0,0.10250365]
[1739903060205,0.01662733,94239.0,94237.0,0.10250365]
[1739903060405,0.01662733,94239.0,94238.0,0.159171]
[1739903060734,0.01662733,94239.0,94237.0,0.10950365]
[1739903060948,0.01662733,94239.0,94238.0,0.159171]
[1739903061154,0.212163,94268.0,94238.0,0.10250365]
[1739903061336,0.01662678,94254.0,94252.0,0.08476686]
[1739903061485,0.17577078,94254.0,94253.0,0.10250365]
[1739903061841,0.159146,94253.0,94252.0,0.08376686]
[1739903062257,0.159166,94241.0,94240.0,0.00819618]
[1739903062459,0.212197,94252.0,94240.0,0.11069983]
[1739903062628,0.00197454,94241.0,94240.0,0.00819618]
[1739903062836,0.00010781,94241.0,94240.0,0.11069983]
[1739903063044,0.00010781,94241.0,94240.0,0.26986783]
[1739903063223,0.00010781,94241.0,94240.0,0.26167165]
[1739903063624,0.00197489,94241.0,94240.0,0.26167165]
[1739903063846,0.00197523,94241.0,94240.0,0.26167165]
[1739903064713,0.00197523,94241.0,94240.0,0.10950365]
[1739903064920,0.00010781,94241.0,94240.0,0.26167165]
[1739903065117,0.00197523,94241.0,94240.0,0.26167165]
[1739903065320,0.00010781,94241.0,94240.0,0.26167165]
[1739903065888,0.00110781,94241.0,94240.0,0.26867165]
[1739903066087,0.00010781,94241.0,94240.0,0.26167165]
[1739903066517,0.00110781,94241.0,94240.0,0.26867165]
[1739903067742,0.00110781,94241.0,94240.0,0.26901205]
[1739903067942,0.00010781,94241.0,94240.0,0.26201205]
[1739903068179,0.00010781,94241.0,94240.0,0.40541205]
[1739903068393,0.0003408,94263.0,94255.0,0.0487]
[1739903068643,0.0003408,94263.0,94262.0,0.24389686]
[1739903068849,0.0003408,94263.0,94262.0,0.34640051]
[1739903069488,0.0003408,94263.0,94262.0,0.37265251]
[1739903069703,0.0003408,94263.0,94262.0,0.47075251]
[1739903069916,0.0003408,94263.0,94262.0,0.53625251]
[1739903070118,0.0003408,94263.0,94262.0,0.69444869]
[1739903070327,0.09476259,94318.0,94262.0,0.69444869]
[1739903070328,0.01661816,94308.0,94271.0,0.502015]
[1739903070535,0.00044841,94272.0,94271.0,0.60451865]
[1739903071641,0.00016125,94272.0,94271.0,0.60451865]
[1739903072054,0.00016125,94272.0,94271.0,0.61271483]
[1739903072266,0.00016125,94272.0,94271.0,0.61971483]
[1739903073122,6.822e-05,94272.0,94271.0,0.61971483]
[1739903074554,6.822e-05,94272.0,94271.0,0.61271483]
[1739903074943,6.822e-05,94272.0,94271.0,0.61971483]
[1739903075631,6.822e-05,94272.0,94271.0,0.61271483]
[1739903075884,0.0001702,94315.0,94279.0,0.319402]
[1739903076058,0.0001702,94315.0,94279.0,0.52967251]
[1739903076412,0.0001702,94315.0,94279.0,0.67967251]
[1739903077428,0.0001702,94315.0,94295.0,0.04]
[1739903077679,0.0001702,94315.0,94295.0,0.63814551]
[1739903078396,0.0001702,94315.0,94295.0,0.68614551]
[1739903078605,0.09132171,94347.0,94312.0,0.02]
[1739903078832,0.212008,94336.0,94319.0,0.212046]
[1739903079040,0.212001,94339.0,94320.0,0.10250365]
[1739903079244,0.01661123,94341.0,94327.0,0.159019]
[1739903079245,0.0019151,94335.0,94327.0,0.159019]
[1739903079452,0.01661123,94341.0,94328.0,0.10250365]
[1739903079819,0.159017,94329.0,94328.0,0.10250365]
[1739903080050,0.01661123,94341.0,94294.0,0.02]
[1739903080051,0.159037,94318.0,94294.0,0.02]
[1739903080253,0.159036,94318.0,94307.0,0.159053]
[1739903080481,0.00191138,94317.0,94308.0,0.13437765]
[1739903080681,0.159039,94316.0,94308.0,0.10250365]
[1739903080832,0.00191138,94317.0,94308.0,0.10250365]
[1739903081197,0.21203,94326.0,94308.0,0.10250365]
[1739903081342,0.159051,94309.0,94308.0,0.10250365]
[1739903081542,0.16095966,94309.0,94308.0,0.10250365]
[1739903081768,0.00190866,94309.0,94308.0,0.10250365]
[1739903081942,0.00190866,94309.0,94308.0,0.10950365]
[1739903082322,0.159048,94311.0,94308.0,0.10250365]
[1739903082546,0.159051,94309.0,94308.0,0.10250365]
[1739903082750,0.00161763,94309.0,94308.0,0.10250365]
[1739903082952,0.159047,94312.0,94308.0,0.10250365]
[1739903083162,0.00161865,94311.0,94308.0,0.10250365]
[1739903083484,0.212053,94316.0,94308.0,0.10950365]
[1739903083685,0.159045,94313.0,94308.0,0.10950365]
[1739903083894,0.00161705,94312.0,94308.0,0.10250365]
[1739903084094,0.0001325,94317.0,94308.0,0.10950365]
[1739903084304,0.00161841,94316.0,94308.0,0.26155565]
[1739903084586,0.0001325,94317.0,94308.0,0.10250365]
[1739903084918,0.0001325,94317.0,94311.0,0.159048]
[1739903085295,0.00161872,94316.0,94312.0,0.10250365]
[1739903085500,0.00161872,94316.0,94315.0,0.159041]
[1739903085703,0.0001325,94317.0,94315.0,0.10250365]
[1739903085901,0.0001325,94317.0,94316.0,0.10250365]
[1739903086427,0.0001325,94317.0,94316.0,0.26154265]
[1739903086887,0.0001325,94317.0,94316.0,0.10250365]
[1739903087299,0.0001325,94317.0,94316.0,0.97280365]
[1739903087471,0.0001325,94317.0,94316.0,0.97980365]
[1739903087678,0.0001325,94317.0,94316.0,0.97280365]
[1739903087878,0.1576565,94326.0,94316.0,0.97280365]
[1739903088082,0.212014,94334.0,94316.0,0.97980365]
[1739903088421,0.159021,94327.0,94317.0,0.159037]
[1739903088621,0.159021,94327.0,94318.0,0.10250365]
[1739903088932,0.00162212,94326.0,94319.0,0.8703]
[1739903089105,0.159021,94327.0,94320.0,0.10250365]
[1739903089351,0.212022,94330.0,94320.0,0.10250365]
[1739903089352,0.00162178,94325.0,94320.0,0.10250365]
[1739903089497,0.159011,94333.0,94320.0,0.10250365]
[1739903089697,0.00162144,94324.0,94320.0,0.10250365]
[1739903089901,0.00044149,94341.0,94320.0,0.10250365]
[1739903089902,0.21243949,94341.0,94320.0,0.10250365]
[1739903090149,0.0016211,94323.0,94322.0,0.159029]
[1739903090359,0.00044149,94341.0,94324.0,0.023]
[1739903090527,0.00044149,94341.0,94331.0,0.08476686]
[1739903090725,0.00044149,94341.0,94340.0,0.158999]
[1739903091076,0.00044149,94341.0,94340.0,1.13180265]
[1739903092028,0.00044149,94341.0,94340.0,1.16366565]
[1739903092235,0.00044149,94341.0,94340.0,1.16352965]
[1739903093058,0.00044149,94341.0,94340.0,1.17052965]
[1739903093941,0.00044149,94341.0,94340.0,1.16772965]
[1739903094370,0.00044149,94341.0,94340.0,1.01166665]
[1739903094639,0.02368842,94369.0,94341.0,0.15]
[1739903094842,0.00013242,94367.0,94342.0,0.97280365]
[1739903095043,0.158988,94347.0,94342.0,0.97280365]
[1739903095371,0.00164033,94346.0,94343.0,0.8703]
[1739903095549,0.158986,94348.0,94344.0,0.10250365]
[1739903095752,0.00163999,94345.0,94344.0,0.10250365]
[1739903095966,0.211914,94378.0,94344.0,0.97280365]
[1739903096102,0.158975,94355.0,94344.0,0.97280365]
[1739903096312,0.0016427,94366.0,94344.0,0.97280365]
[1739903096509,0.158969,94358.0,94346.0,0.211985]
[1739903096723,0.00164236,94365.0,94347.0,0.10250365]
[1739903096921,0.211945,94364.0,94347.0,0.10250365]
[1739903097215,0.158974,94356.0,94347.0,0.10250365]
[1739903097418,0.158971,94357.0,94347.0,0.26149065]
[1739903097790,0.01660743,94360.0,94355.0,0.08476686]
[1739903097917,0.01660743,94360.0,94356.0,0.26147365]
[1739903098107,0.01660743,94360.0,94356.0,0.10250365]
[1739903098312,0.15897,94358.0,94356.0,0.10250365]
[1739903098524,0.01660743,94360.0,94356.0,0.10250365]
[1739903099435,0.158967,94359.0,94356.0,0.25250365]
[1739903099613,0.01660743,94360.0,94356.0,0.25250365]
[1739903099816,0.158967,94359.0,94356.0,0.25250365]
[1739903100051,0.01660743,94360.0,94357.0,0.00816589]
[1739903100253,0.01660743,94360.0,94358.0,0.10250365]
[1739903100456,0.16060137,94359.0,94358.0,0.10250365]
[1739903100636,0.00163437,94359.0,94358.0,0.10250365]
[1739903101075,0.16060137,94359.0,94358.0,0.10250365]
[1739903101376,0.00163437,94359.0,94358.0,0.10250365]
[1739903101717,0.16060137,94359.0,94358.0,0.10250365]
[1739903101923,0.16060137,94359.0,94358.0,0.09970365]
[1739903102151,0.16060137,94359.0,94358.0,0.3246]
[1739903102768,0.16060137,94359.0,94358.0,0.3316]
[1739903102966,0.16060137,94359.0,94356.0,0.15]
[1739903102967,0.15897,94357.0,94356.0,0.15]
[1739903103189,0.30897,94357.0,94356.0,0.15]
[1739903103522,0.3106088,94357.0,94356.0,0.15]
[1739903105591,0.159002,94338.0,94337.0,0.00817475]
[1739903105842,0.159002,94338.0,94337.0,0.33277475]
[1739903106072,0.1756122,94338.0,94337.0,0.33277475]
[1739903106273,0.17724537,94338.0,94337.0,0.33277475]
[1739903106904,0.01824337,94338.0,94337.0,0.3316]
[1739903107101,0.17724537,94338.0,94337.0,0.3316]
[1739903107293,0.1756122,94338.0,94337.0,0.3316]
[1739903107514,0.17724264,94338.0,94337.0,0.3316]
[1739903107727,0.01824064,94338.0,94337.0,0.43410365]
[1739903107863,0.00163044,94338.0,94337.0,0.43410365]
[1739903108064,0.159002,94338.0,94337.0,0.43410365]
[1739903108265,0.16062924,94338.0,94337.0,0.43410365]
[1739903108614,0.00162724,94338.0,94337.0,0.59310765]
[1739903108952,0.158993,94344.0,94337.0,0.43410365]
[1739903109160,0.158993,94344.0,94338.0,0.10250365]
[1739903109357,0.01674132,94349.0,94338.0,0.10250365]
[1739903109600,0.22872232,94349.0,94338.0,0.10250365]
[1739903109803,0.158995,94343.0,94338.0,0.10250365]
[1739903110011,0.211988,94345.0,94338.0,0.10250365]
[1739903110166,0.158999,94341.0,94338.0,0.10250365]
[1739903110366,0.158999,94341.0,94339.0,0.00818194]
[1739903110706,0.158999,94341.0,94340.0,0.10250365]
[1739903111083,0.158999,94341.0,94340.0,0.3246]
[1739903112598,0.157319,94341.0,94340.0,0.3246]
[1739903113229,0.160324,94341.0,94340.0,0.007]
[1739903113401,0.159028,94323.0,94322.0,0.3246]
[1739903113600,0.159028,94323.0,94322.0,0.3218]
[1739903114451,0.309028,94323.0,94322.0,0.3218]
[1739903114691,0.309028,94323.0,94322.0,0.3185]
[1739903115482,0.31065089,94323.0,94322.0,0.3185]
[1739903115862,0.15162289,94323.0,94322.0,0.3185]
[1739903116421,0.15162289,94323.0,94322.0,0.3255]
[1739903116532,0.31065089,94323.0,94322.0,0.3255]
[1739903117340,0.15162289,94323.0,94322.0,0.3255]
[1739903117541,0.00162289,94323.0,94322.0,0.42800365]
[1739903117755,0.159028,94323.0,94322.0,0.42800365]
[1739903117971,0.1606483,94323.0,94322.0,0.42834365]
[1739903118178,0.1606483,94323.0,94322.0,0.32584]
[1739903118559,0.00161996,94323.0,94322.0,0.32584]
[1739903118756,0.159028,94323.0,94322.0,0.32584]
[1739903118965,0.16057431,94323.0,94322.0,0.32584]
[1739903119987,0.00154631,94323.0,94322.0,0.32584]
[1739903120187,0.01661262,94327.0,94322.0,0.32584]
[1739903120397,0.01661262,94327.0,94323.0,0.08476686]
[1739903120610,0.01661262,94327.0,94326.0,0.159022]
[1739903120907,0.01661262,94327.0,94326.0,0.26152565]
[1739903121114,0.01661262,94327.0,94326.0,0.34342565]
[1739903121467,0.01661262,94327.0,94326.0,0.36642565]
[1739903121676,0.158997,94342.0,94333.0,0.159009]
[1739903121885,0.158997,94342.0,94335.0,0.08476686]
[1739903122116,0.16054453,94341.0,94336.0,0.10250365]
[1739903122326,0.00154653,94341.0,94336.0,0.10250365]
[1739903122503,0.17560185,94344.0,94336.0,0.26150865]
[1739903122703,0.21354653,94340.0,94336.0,0.10250365]
[1739903122976,0.158998,94341.0,94336.0,0.10250365]
[1739903123263,0.00154755,94339.0,94336.0,0.10250365]
[1739903123436,0.16054553,94340.0,94336.0,0.10250365]
[1739903123638,0.00154756,94338.0,94336.0,0.26850765]
[1739903123838,0.15,94344.0,94336.0,0.10950365]
[1739903124059,0.308992,94344.0,94336.0,0.26150865]
[1739903124230,0.00155641,94343.0,94336.0,0.26850865]
[1739903124437,0.16055041,94343.0,94336.0,0.26150865]
[1739903124675,0.00155641,94343.0,94336.0,0.26150865]
[1739903125334,0.00155641,94343.0,94339.0,0.159]
[1739903125556,0.21211137,94349.0,94340.0,0.10250365]
[1739903125752,0.00155641,94342.0,94340.0,0.10250365]
[1739903125955,0.158991,94345.0,94341.0,0.3185]
[1739903126167,0.158992,94344.0,94342.0,0.10250365]
[1739903126380,0.01660846,94347.0,94344.0,0.0816]
[1739903126560,0.01660846,94347.0,94345.0,0.10250365]
[1739903127187,0.01660846,94347.0,94346.0,0.56225586]
[1739903127339,0.01660846,94347.0,94346.0,0.50577051]
[1739903127535,0.01660846,94347.0,94346.0,0.42100365]
[1739903127809,0.01660846,94347.0,94346.0,0.41820365]
[1739903128187,0.01660846,94347.0,94346.0,0.66195951]
[1739903128753,0.01660846,94347.0,94346.0,0.50297051]
[1739903129925,0.01660846,94347.0,94346.0,0.50997051]
[1739903130760,0.01816904,94347.0,94346.0,0.50997051]
[1739903130958,0.01660846,94347.0,94346.0,0.50997051]
[1739903131828,0.01660846,94347.0,94346.0,1.05567051]
[1739903132030,0.01660846,94347.0,94346.0,0.8684]
[1739903132031,0.17559546,94347.0,94346.0,0.8684]
[1739903132234,0.31054767,94347.0,94346.0,0.3227]
[1739903133870,0.31054767,94347.0,94346.0,0.007]
[1739903134085,0.15156067,94347.0,94327.0,0.3157]
[1739903134311,0.159019,94328.0,94327.0,0.3157]
[1739903134720,0.16057418,94328.0,94327.0,0.3157]
[1739903136074,0.31057418,94328.0,94327.0,0.3157]
[1739903136482,0.31057418,94328.0,94327.0,0.41820365]
[1739903136733,0.32718598,94328.0,94327.0,0.3227]
[1739903139560,0.32718598,94328.0,94327.0,0.3157]
[1739903139738,0.32718598,94328.0,94316.0,0.00034]
[1739903139743,0.159028,94323.0,94316.0,0.00034]
[1739903139895,0.16035339,94323.0,94316.0,0.00034]
[1739903140099,0.16189857,94323.0,94316.0,0.00034]
[1739903140298,0.159038,94317.0,94316.0,0.00022248]
[1739903140504,0.16057671,94317.0,94316.0,0.00022248]
[1739903140773,0.16190214,94317.0,94316.0,0.00022248]
[1739903140974,0.17719246,94317.0,94316.0,0.00022248]
[1739903141533,0.17719246,94317.0,94316.0,0.00066397]
[1739903142614,0.17719246,94317.0,94316.0,0.00766397]
[1739903143041,0.31057671,94317.0,94316.0,0.00766397]
[1739903145550,0.31057671,94317.0,94316.0,9.7e-07]
[1739903145551,0.33887465,94317.0,94316.0,9.7e-07]
[1739903145928,0.35549201,94317.0,94316.0,9.7e-07]
[1739903146321,0.32719407,94317.0,94316.0,9.7e-07]
[1739903146841,0.09601736,94317.0,94316.0,9.7e-07]
[1739903147043,0.25652905,94317.0,94316.0,9.7e-07]
[1739903148735,0.17712905,94317.0,94316.0,9.7e-07]
[1739903149669,0.01809105,94317.0,94316.0,0.31570097]
[1739903149874,0.17712905,94317.0,94316.0,0.31570097]
[1739903150085,0.17565536,94317.0,94316.0,0.31570097]
[1739903150289,0.01808027,94317.0,94316.0,0.55083997]
[1739903150509,0.08344027,94317.0,94316.0,0.55083997]
[1739903150734,0.08197736,94317.0,94316.0,0.55083997]
[1739903150938,0.08197736,94317.0,94316.0,0.39180097]
[1739903150939,0.01661736,94317.0,94316.0,0.39180097]
[1739903151493,0.01808078,94317.0,94316.0,0.39180097]
[1739903151894,0.17711878,94317.0,94316.0,0.39180097]
[1739903152745,0.01808078,94317.0,94316.0,0.39214117]
[1739903152921,0.00146342,94317.0,94316.0,0.39214117]
[1739903153135,0.00163352,94317.0,94316.0,0.39214117]
[1739903153329,0.16067152,94317.0,94316.0,0.39214117]
[1739903153595,0.16043593,94317.0,94316.0,0.39214117]
[1739903154426,0.16043593,94317.0,94316.0,0.31604117]
[1739903155333,0.00139793,94317.0,94316.0,0.31604117]
[1739903155549,0.02,94355.0,94316.0,0.31604117]
[1739903155768,0.00132523,94354.0,94325.0,0.08476686]
[1739903155926,0.159022,94326.0,94325.0,0.08476686]
[1739903156344,0.16042623,94326.0,94325.0,0.08476686]
[1739903157341,0.16142623,94326.0,94325.0,0.09176686]
[1739903157539,0.17803846,94326.0,94325.0,0.09176686]
[1739903160642,0.17803846,94326.0,94325.0,0.007]
[1739903160770,0.32936376,94326.0,94325.0,0.007]
[1739903160973,0.32803846,94326.0,94325.0,0.007]
[1739903162699,0.31142623,94326.0,94325.0,0.007]
[1739903163590,0.00240423,94326.0,94325.0,0.007]
[1739903163793,0.16142623,94326.0,94325.0,0.007]
[1739903163992,0.00240423,94326.0,94325.0,0.007]
[1739903164134,0.001,94326.0,94325.0,0.0874]
[1739903164334,0.06776977,94326.0,94325.0,0.0874]
[1739903164546,0.00240977,94326.0,94325.0,0.1367]
[1739903164945,0.160022,94326.0,94325.0,0.1367]
[1739903165151,0.001,94326.0,94325.0,0.1367]
[1739903165365,0.16043177,94326.0,94325.0,0.1297]
[1739903165551,0.16043177,94326.0,94325.0,0.1367]
[1739903165552,0.159022,94326.0,94325.0,0.1367]
[1739903165782,0.16043177,94326.0,94325.0,0.1297]
[1739903166150,0.16043177,94326.0,94325.0,0.1367]
[1739903166314,0.16060197,94326.0,94325.0,0.1367]
[1739903167135,0.00157997,94326.0,94325.0,0.1367]
[1739903167340,0.01819177,94326.0,94325.0,0.4524]
[1739903167674,0.17721377,94326.0,94325.0,0.4524]
[1739903169305,0.17721377,94326.0,94325.0,0.3227]
[1739903169769,0.17721377,94326.0,94325.0,0.00391722]
[1739903169770,0.20551171,94326.0,94325.0,0.00391722]
[1739903170188,0.159031,94321.0,94320.0,0.0003404]
[1739903170394,0.18193805,94321.0,94320.0,4e-07]
[1739903170563,0.159038,94317.0,94316.0,6e-07]
[1739903170776,0.18866158,94317.0,94316.0,6e-07]
[1739903170966,0.26606514,94317.0,94316.0,6e-07]
[1739903171151,0.23644156,94317.0,94316.0,6e-07]
[1739903172183,0.38644156,94317.0,94316.0,6e-07]
[1739903172762,0.38644156,94317.0,94316.0,0.0040006]
[1739903173137,0.38644156,94317.0,94316.0,6e-07]
[1739903173369,0.38644156,94317.0,94316.0,0.0050006]
[1739903173574,0.31044156,94317.0,94316.0,0.0050006]
[1739903173782,0.31044156,94317.0,94316.0,6e-07]
[1739903174017,0.16044156,94317.0,94316.0,6e-07]
[1739903174207,0.00140356,94317.0,94300.0,0.0816]
[1739903174415,0.159053,94308.0,94307.0,0.08476686]
[1739903174638,0.309053,94308.0,94307.0,0.08476686]
[1739903174843,0.31044647,94308.0,94307.0,0.08476686]
[1739903175043,0.159063,94302.0,94301.0,0.3157]
[1739903175517,0.16045817,94302.0,94301.0,0.3157]
[1739903176341,0.16145817,94302.0,94301.0,0.3227]
[1739903177278,0.17807578,94302.0,94301.0,0.3227]
[1739903178192,0.17707578,94302.0,94301.0,0.3157]
[1739903178406,0.17807578,94302.0,94301.0,0.3177]
[1739903178810,0.17707578,94302.0,94301.0,0.3157]
[1739903179014,0.17807578,94302.0,94301.0,0.3177]
[1739903179218,0.32807578,94302.0,94301.0,0.3177]
[1739903179403,0.32807578,94302.0,94301.0,0.002]
[1739903179616,0.32907578,94302.0,94301.0,0.004]
[1739903180204,0.309065,94301.0,94300.0,0.0001325]
[1739903180758,0.31045992,94301.0,94300.0,0.0001325]
[1739903181765,0.31145992,94301.0,94300.0,0.0071325]
[1739903182308,0.31045992,94301.0,94300.0,0.0001325]
[1739903182507,0.31145992,94301.0,94300.0,0.0071325]
[1739903182711,0.31145992,94301.0,94300.0,0.0001325]
[1739903183711,0.31245992,94301.0,94300.0,0.0071325]
[1739903184834,0.31045992,94301.0,94300.0,0.0001325]
[1739903185191,0.00139492,94301.0,94300.0,0.3228325]
[1739903185387,0.02079956,94322.0,94300.0,0.3988325]
[1739903185590,0.0001702,94326.0,94307.0,0.08476686]
[1739903185591,0.159053,94308.0,94307.0,0.08476686]
[1739903186019,0.16044498,94308.0,94307.0,0.08476686]
[1739903186982,0.00139198,94308.0,94307.0,0.08476686]
[1739903187239,0.212008,94336.0,94307.0,1.04867051]
[1739903187436,0.01661524,94308.0,94307.0,0.94616686]
[1739903187594,0.212055,94315.0,94307.0,0.97804386]
[1739903187800,0.159046,94312.0,94307.0,0.97804386]
[1739903188003,0.159048,94311.0,94308.0,0.02968538]
[1739903188195,0.16044237,94311.0,94308.0,0.02868538]
[1739903188443,0.00139437,94311.0,94308.0,0.02868538]
[1739903188622,0.01661462,94317.0,94308.0,0.02868538]
[1739903188623,0.001,94315.0,94310.0,0.0797]
[1739903188824,0.001,94315.0,94312.0,0.159046]
[1739903189120,0.01661462,94317.0,94311.0,0.94628903]
[1739903189121,0.01661462,94317.0,94313.0,0.28454765]
[1739903189360,0.01661462,94317.0,94313.0,0.28354765]
[1739903189563,0.00140169,94316.0,94313.0,0.28354765]
[1739903189751,0.00140169,94316.0,94313.0,0.12450365]
[1739903189954,0.00140169,94316.0,94315.0,0.204041]
[1739903190119,0.0001702,94326.0,94322.0,0.159028]
[1739903190340,0.0001702,94326.0,94325.0,0.08476686]
[1739903190678,0.1591922,94326.0,94325.0,0.08476686]
[1739903191443,0.0001702,94326.0,94325.0,0.08476686]
[1739903192073,0.1591922,94326.0,94325.0,0.08476686]
[1739903192885,0.1591922,94326.0,94325.0,0.09176686]
[1739903194295,0.1591922,94326.0,94325.0,0.40746686]
[1739903195944,0.0001702,94326.0,94325.0,0.56649086]
[1739903196519,0.0001702,94326.0,94325.0,0.64699086]
[1739903196768,0.1591922,94326.0,94325.0,0.48796686]
[1739903197034,0.1591922,94326.0,94325.0,0.48096686]
[1739903197245,0.16060034,94326.0,94325.0,0.48096686]
[1739903198657,0.16060034,94326.0,94325.0,0.48796686]
[1739903198796,0.16060034,94326.0,94325.0,0.48096686]
[1739903199004,0.16060034,94326.0,94325.0,0.40046686]
[1739903199404,0.16060034,94326.0,94325.0,0.3157]
[1739903199650,0.31060034,94326.0,94325.0,0.007]
[1739903199853,0.31060034,94326.0,94307.0,0.0003404]
[1739903199854,0.159053,94308.0,94307.0,0.0003404]
[1739903200230,0.16045812,94308.0,94307.0,0.3160404]
[1739903200673,0.17707369,94308.0,94307.0,0.3160404]
[1739903201901,0.32707369,94308.0,94307.0,0.3160404]
[1739903202102,0.16802069,94308.0,94307.0,0.3160404]
[1739903202337,0.32707369,94308.0,94307.0,0.3230404]
[1739903202871,0.32707369,94308.0,94307.0,0.3160404]
[1739903203073,0.31045812,94308.0,94307.0,0.3230404]
[1739903203277,0.31045812,94308.0,94307.0,0.3160404]
[1739903203480,0.31045812,94308.0,94307.0,0.3230404]
[1739903204833,0.31045812,94308.0,94307.0,0.3160404]
[1739903205035,0.31045812,94308.0,94307.0,0.3230404]
[1739903207362,0.32707445,94308.0,94307.0,0.3230404]
[1739903209271,0.32707445,94308.0,94307.0,0.3160404]
[1739903209819,0.32707445,94308.0,94307.0,0.3230404]
[1739903211106,0.32707445,94308.0,94307.0,0.3160404]
[1739903211316,0.32707445,94308.0,94307.0,0.3230404]
[1739903211511,0.32707445,94308.0,94307.0,0.3160404]
[1739903211803,0.32707445,94308.0,94307.0,0.3230404]
[1739903212211,0.32707445,94308.0,94307.0,0.3160404]
[1739903212418,0.32707445,94308.0,94307.0,0.3230404]
[1739903212639,0.32707445,94308.0,94307.0,0.3160404]
[1739903213043,0.31045812,94308.0,94307.0,0.3230404]
[1739903213238,0.31062832,94308.0,94307.0,0.3230404]
[1739903214276,0.31062832,94308.0,94307.0,0.3160404]
[1739903214681,0.31062832,94308.0,94307.0,0.3230404]
[1739903214885,0.31062832,94308.0,94307.0,0.3160404]
[1739903215332,0.31062832,94308.0,94307.0,0.3230404]
[1739903215509,0.31062832,94308.0,94307.0,0.3160404]
[1739903215866,0.32724445,94308.0,94307.0,0.3230404]
[1739903222370,0.32724445,94308.0,94307.0,0.0073404]
[1739903222572,0.32724445,94308.0,94291.0,0.3157]
[1739903222573,0.159065,94301.0,94300.0,9e-07]
[1739903222943,0.44939877,94301.0,94300.0,9e-07]
[1739903223365,0.42105215,94301.0,94300.0,9e-07]
[1739903224102,0.42305215,94301.0,94300.0,9e-07]
[1739903224551,0.42105215,94301.0,94300.0,9e-07]
[1739903225283,0.39275421,94301.0,94300.0,9e-07]
[1739903225487,0.41441984,94301.0,94300.0,9e-07]
[1739903225974,0.43103982,94301.0,94300.0,9e-07]
[1739903226238,0.43103982,94301.0,94300.0,3e-07]
[1739903227300,0.12197482,94301.0,94300.0,3e-07]
[1739903227520,0.28152703,94301.0,94300.0,3e-07]
[1739903227699,0.27978171,94301.0,94300.0,3e-07]
[1739903227904,0.35621659,94301.0,94300.0,3e-07]
[1739903228132,0.35621659,94301.0,94272.0,0.08476686]
[1739903228133,0.159112,94273.0,94272.0,0.08476686]
[1739903228701,0.16049352,94273.0,94272.0,0.08476686]
[1739903228914,0.159114,94272.0,94271.0,0.0003402]
[1739903229115,0.1604401,94272.0,94271.0,0.0003402]
[1739903229435,0.31182128,94272.0,94271.0,0.0003402]
[1739903229641,0.31049518,94272.0,94271.0,0.0003402]
[1739903230186,0.16049518,94272.0,94271.0,0.0003402]
[1739903230661,0.16049518,94272.0,94271.0,0.0816402]
[1739903230872,0.16182114,94272.0,94271.0,0.0866402]
[1739903231074,0.16049518,94272.0,94271.0,0.0053402]